[Event "10th Iberoamericano-ch 2024"]
[Site "Linares"]
[Date "2024.09.25"]
[Round "2.7"]
[White "Blanco Acevedo, Cristobal Jose"]
[Black "Flores Quillas, Diego Saul Rodri"]
[Result "0-1"]
[ECO "B51"]
[WhiteElo "2301"]
[BlackElo "2451"]
[Annotator "TA"]
[PlyCount "109"]
[EventDate "2024.09.25"]
[EventType "swiss"]
[EventCountry "ESP"]
[SourceTitle "playchess.com"]
[Source "ChessBase"]
[SourceQuality "1"]
[TimeControl "5400+30"]

{[%evp 24,109,0,-10,34,27,43,43,275,19,336,-43,42,48,39,39,42,25,101,107,1416,1413,1352,447,2039,118,94,105,127,75,65,56,49,42,51,35,33,12,14,0,69,70,81,38,39,37,49,35,75,82,55,94,93,91,108,0,0,0,0,0,0,0,0,-63,0,-6,0,0,0,0,0,0,0,0,0,0,0,0,0,0,0,0,0,0,0,0,0,0]} 1. e4 {[%emt 0:04:10]} c5 {[%emt 0:00:19]} 2. Nf3 {[%emt 0:00:07]} d6 {[%emt 0:00:03]} 3. Bb5+ {[%emt 0:00:07]} Nd7 {[%emt 0:00:04]} 4. a4 {[%emt 0:00:06]} Ngf6 {[%emt 0:00:36]} 5. Nc3 {[%emt 0:00:10]} g6 {[%emt 0:01:37]} 6. d4 {[%emt 0:00:08] B51: Sicilian: Moscow Variation (3 Bb5+) without 3...Bd7.} cxd4 {[%emt 0:00:16]} 7. Nxd4 {[%emt 0:00:58]} Bg7 {[%emt 0:00:07]} 8. O-O O-O 9. Kh1 {[%emt 0:05:09]} Nc5 {[%emt 0:22:35]} 10. f3 {[%emt 0:00:33]} Bd7 $146 {[%emt 0:00:12]} ({Predecessor:} 10... a6 11. Bc4 Bd7 12. Be3 Rc8 13. Qe2 Qc7 14. Ba2 e5 15. Nb3 Nxa4 16. Nxa4 Bxa4 {0-1 Mayer,I (2069)-Szalanczy,E (2239) Budapest FS02 FM-A 2011 (11)}) 11. Be3 {[%emt 0:01:42]} Rc8 {[%emt 0:00:37]} 12. Qd2 {[%emt 0:02:57]} a6 {[%emt 0:00:41]} 13. Be2 {[%emt 0:00:22]} Qa5 {[%emt 0:08:27]} 14. Ra3 {[%emt 0:08:27]} Qb6 {[%emt 0:02:43]} 15. Rb1 {[%emt 0:06:00]} Rfd8 $2 {[%emt 0:13:19]} (15... Qc7 $14) 16. Qd1 $2 {[%emt 0:03:35]} ({White must play} 16. b4 $18) 16... Nxa4 $2 {[%emt 0:14:21][%mdl 8192]} (16... Qc7 $11 {and Black stays safe.}) 17. Na2 $2 {[%emt 0:03:23]} (17. Rxa4 Bxa4 18. Nxa4 Qa5 $18) (17. Nxa4 $18 Qc7 18. c4) 17... Qa5 {[%emt 0:01:48]} (17... Nxb2 18. Qc1 $16) (17... Qc7 $1 $15 18. c4 e5) 18. b3 $14 {[%emt 0:03:25]} Qc5 {[%emt 0:01:15]} 19. Rxa4 {[%emt 0:00:51]} Bxa4 {[%emt 0:00:06]} 20. bxa4 {[%emt 0:00:04]} e5 {[%emt 0:01:52]} (20... Qa3 $11 21. Qc1 Qxa4 (21... Qxa2 $2 22. Ra1 $18)) 21. Nf5 $1 $16 {[%emt 0:00:48]} Qc4 $2 {[%emt 0:00:05][%mdl 8192]} (21... Qa3 $16 22. Ne7+ Kh8) 22. Ne7+ $18 {[%emt 0:03:30]} Kh8 {[%emt 0:00:33]} 23. Nxc8 {[%emt 0:03:15]} (23. Bxc4 $142 Rxc4 24. Rxb7 Rxa4 25. Qb1) 23... Rxc8 {[%emt 0:00:40]} (23... Qxc8 $142 24. c4 Bf8) 24. Bd3 $2 {[%emt 0:02:05]} (24. Bxc4 $18 {and the rest is easy.} Rxc4 25. Rxb7 (25. Qxd6 Rc8 $18)) 24... Qxa2 $16 {[%emt 0:00:08]} 25. Rxb7 {[%emt 0:00:17]} d5 {[%emt 0:06:55]} 26. Qb1 {[%emt 0:00:44]} (26. Bxa6 $6 d4 27. Bg1 Qxa4 $11) (26. exd5 $142 {c4 would now be deadly.} Nxd5 27. Bg1) 26... Qxb1+ $16 {[%emt 0:01:45]} 27. Rxb1 {[%emt 0:00:05]} d4 $1 {[%emt 0:00:03]} 28. Bd2 {[%emt 0:11:14]} Nd7 {[%emt 0:01:21]} 29. Kg1 {[%emt 0:05:45]} ({Of course not} 29. Bxa6 Rxc2 30. Bc1 Bf8 $11) 29... Nc5 {[%emt 0:00:20]} 30. a5 {[%emt 0:00:30]} h5 {[%emt 0:00:30]} 31. Kf1 {[%emt 0:00:30]} Kh7 {[%emt 0:00:30]} (31... Nxd3 $11 32. cxd3 Kh7) 32. Ke2 $1 $14 {[%emt 0:00:30]} Bh6 {[%emt 0:00:30]} 33. Be1 {[%emt 0:00:30]} Bg5 {[%emt 0:00:30]} 34. Rb4 {[%emt 0:00:30]} Be7 {[%emt 0:00:30]} 35. Rb6 {[%emt 0:00:30]} Bd8 {[%emt 0:00:30]} 36. Rd6 $1 {[%emt 0:00:30]} Be7 {[%emt 0:00:30]} 37. Rd5 $1 {[%emt 0:00:30]} ({Weaker is} 37. Bxa6 Ra8 38. Rd5 Nxa6 $19 (38... Rxa6 $2 39. Rxe5 Ne6 40. g3 $17)) 37... f6 {[%emt 0:00:30] [#]} 38. g3 $1 {[%emt 0:00:30]} Rc6 {[%emt 0:00:30] [#]} 39. Bd2 {[%emt 0:00:30]} ({White has to play} 39. f4 $1 $16) 39... Kg7 $11 {[%emt 0:00:30]} 40. f4 {[%emt 0:00:30]} Nxd3 $1 {[%emt 0:00:30]} 41. Kxd3 {[%emt 0:00:30]} (41. cxd3 Bd6 42. h3 Kf7 $15) 41... Bd6 {[%emt 0:00:30]} 42. h3 {[%emt 0:00:30]} Kf7 {[%emt 0:00:30]} 43. f5 {[%emt 0:00:30]} ({White should try} 43. g4 $11) 43... g5 {[%emt 0:00:30]} (43... gxf5 $15 44. exf5 Ke7) 44. g4 $11 {[%emt 0:00:30]} hxg4 {[%emt 0:00:30]} 45. hxg4 {[%emt 0:00:30]} Ke7 {[%emt 0:00:30]} 46. c3 {[%emt 0:00:30]} dxc3 {[%emt 0:00:30]} 47. Bxc3 {[%emt 0:00:30]} Rc8 {[%emt 0:00:30]} 48. Be1 {[%emt 0:00:30]} Rh8 {[%emt 0:00:30]} 49. Ke2 {[%emt 0:00:30]} Rh2+ {[%emt 0:00:30]} 50. Bf2 {[%emt 0:00:30]} Kd7 {[%emt 0:00:30]} 51. Kf3 {[%emt 0:00:30]} Kc6 {[%emt 0:00:30]} 52. Bb6 {[%emt 0:00:30]} Rh8 {[%emt 0:00:30]} 53. Kg2 {[%emt 0:00:30]} Rh7 {[%emt 0:00:30]} 54. Rd1 {[%emt 0:00:30]} Rd7 {[%emt 0:00:30]} 55. Rc1+ {[%emt 0:00:30]} 0-1

[Event "10th Iberoamericano-ch 2024"]
[Site "Linares"]
[Date "2024.09.25"]
[Round "2.8"]
[White "Lopez Martinez, Josep Manuel"]
[Black "Domingo Nunez, Alejandro"]
[Result "1/2-1/2"]
[ECO "E60"]
[WhiteElo "2448"]
[BlackElo "2328"]
[Annotator "TA"]
[PlyCount "62"]
[EventDate "2024.09.25"]
[EventType "swiss"]
[EventCountry "ESP"]
[SourceTitle "playchess.com"]
[Source "ChessBase"]
[SourceQuality "1"]
[TimeControl "5400+30"]

{[%evp 9,62,16,39,30,35,30,32,22,13,19,77,33,40,41,60,64,71,83,66,62,127,134,156,77,55,62,67,77,182,-19,-12,-130,-141,-196,-141,-193,-184,-193,-204,-342,-36,-34,-24,-30,-28,-48,-25,-129,-127,-120,0,-32,0,-115,0]} 1. d4 {[%emt 0:04:12]} g6 {[%emt 0:00:23]} 2. h4 {[%emt 0:02:59]} Nf6 {[%emt 0:00:02]} 3. c4 {[%emt 0:00:21]} d6 {[%emt 0:05:12]} 4. Nc3 {[%emt 0:02:52]} Nbd7 {[%emt 0:01:17]} 5. e4 {[%emt 0:04:09]} e5 {[%emt 0:02:49]} 6. Be3 {[%emt 0:03:23]} exd4 {[%emt 0:09:59]} 7. Bxd4 {[%emt 0:00:30]} Bg7 {[%emt 0:00:18] [#]} 8. h5 $1 {[%emt 0:03:52] White is slightly better.} O-O {[%emt 0:00:04]} 9. hxg6 {[%emt 0:01:03]} hxg6 {[%emt 0:00:16]} (9... fxg6 $11 10. Qd2 Ne5) 10. f3 $16 {[%emt 0:00:32] White is much more active.} Ne5 $1 {[%emt 0:05:13]} 11. Qd2 {[%emt 0:00:52]} Nh5 {[%emt 0:07:05]} 12. Bf2 {[%emt 0:06:40] Against Ng3} Be6 {[%emt 0:02:09]} 13. g4 $36 {[%emt 0:02:04][%mdl 2048] White has strong initiative.} Nf6 {[%emt 0:02:46][%cal Of8e8]} 14. O-O-O {[%emt 0:01:50]} Nxc4 {[%emt 0:04:42]} ({Better is} 14... Re8 $14) 15. Bxc4 {[%emt 0:01:10]} Bxc4 {[%emt 0:00:14]} 16. Be3 {[%emt 0:01:53]} ({White should play} 16. Bd4 $1) 16... Re8 {[%emt 0:08:45]} 17. Bh6 {[%emt 0:03:27] And now Bxg7 would win.} Bh8 {[%emt 0:00:03]} 18. Qh2 {[%emt 0:00:46] Threatens to win with Bg5.} Qe7 {[%emt 0:13:03] [#]} (18... b5 $16 {is a better defense.}) 19. e5 $2 {[%emt 0:11:04]} dxe5 $11 {[%emt 0:06:26]} (19... Qxe5 $2 20. Bf4 Bg7 21. Bxe5 $18) 20. Bf8 {[%emt 0:18:23]} Kxf8 $17 {[%emt 0:00:09]} 21. Qxh8+ {[%emt 0:00:07]} Ng8 {[%emt 0:00:03]} 22. Ne4 {[%emt 0:00:16]} (22. b3 $17 Be6 23. Kb2) 22... Rad8 $1 $19 {[%emt 0:12:42]} (22... Bxa2 23. Ne2 Rad8 24. Rxd8 Rxd8 25. N2c3 $17) 23. Nh3 {[%emt 0:00:09] [#]} f6 {[%emt 0:03:47][%cal Bf7f6,Bf6f5][%mdl 32] Dodges Nhg5} (23... Bxa2 $2 24. Nhg5 Rxd1+ 25. Rxd1 $18) (23... Rxd1+ 24. Rxd1 Rd8 (24... Bxa2 $2 25. Nhg5 $18) 25. Rxd8+ Qxd8 26. b3 $15) 24. g5 {[%emt 0:01:28] [#]} (24. Nhf2 {was called for.} Qg7 (24... Bxa2 $2 25. Rh7 $18) 25. Qh4 (25. Rxd8 $2 Rxd8 26. Qh2 Bxa2 $19)) 24... Rxd1+ $2 {[%emt 0:04:25]} (24... Bxa2 $2 {perishes.} 25. gxf6 (25. Nxf6 $2 Qc5#) 25... Qf7 26. Nhg5 Qc4+ 27. Nc3 Qf4+ 28. Kc2 Qxf6 29. Nh7+ Kf7 30. Nxf6 $18) ({Inferior is} 24... Qg7 25. Qh4 f5 (25... Bxa2 26. gxf6 Rxd1+ 27. Kxd1 $16) 26. Nf6 $11) (24... f5 $1 $19 {[%cal Rf5e4]} 25. Nc3 Qc5) 25. Rxd1 $15 {[%emt 0:00:10]} f5 {[%emt 0:00:18]} 26. Nf6 {[%emt 0:00:30]} Rd8 {[%emt 0:00:02] Prevents Nd7+} 27. Rxd8+ {[%emt 0:05:33]} Qxd8 {[%emt 0:00:02]} 28. Nh7+ {[%emt 0:01:54] A dynamic duo of knights.} (28. b3 $11 {was the only way to keep the balance.} Be6 29. Nh7+ Kf7 30. Nf6) 28... Kf7 $17 {[%emt 0:00:18] ( -> ...Qd4)} 29. Nf6 {[%emt 0:00:09]} Kf8 {[%emt 0:03:46]} (29... Bxa2 $17 {aiming for ...Kf8.} 30. Nf2 Kf8 31. Nh7+ Kf7) 30. Nh7+ $15 {[%emt 0:00:14]} Kf7 {[%emt 0:02:30]} (30... Ke7 $15 31. b3 (31. Qxe5+ $2 Kf7 $19) 31... Bd5 32. Qg7+ (32. Qxe5+ Kf7 $15) 32... Kd6 33. Qxg6+ Be6) 31. Nf6 $1 $17 {[%emt 0:00:07]} Kf8 {[%emt 0:01:20] Weighted Error Value: White=0.36/Black=0.31.  Missed win:     	White=1     	Black=1      Mistake:       	White=5     	Black=6      OK:         	White=11    	Black=6      Best:        	White=1     	Black=5      Strong:       	White=1     	Black=2} (31... Bxa2 $17 32. Nf2 Qf8) 1/2-1/2

[Event "10th Iberoamericano-ch 2024"]
[Site "Linares"]
[Date "2024.09.25"]
[Round "2.9"]
[White "Iglesias Ferreira, Andres"]
[Black "Garrido Outon, Alex"]
[Result "0-1"]
[ECO "B00"]
[WhiteElo "2285"]
[BlackElo "2448"]
[Annotator "TA"]
[PlyCount "84"]
[EventDate "2024.09.25"]
[EventType "swiss"]
[EventCountry "ESP"]
[SourceTitle "playchess.com"]
[Source "ChessBase"]
[SourceQuality "1"]
[TimeControl "5400+30"]

{[%evp 9,84,30,46,38,22,20,18,34,18,20,23,20,20,18,41,25,30,18,26,22,55,43,61,36,28,0,110,102,104,92,91,120,94,116,132,152,133,72,69,64,141,43,47,39,38,33,29,4,41,-67,-65,-67,-10,-125,-125,-362,-337,-359,-341,-343,-353,-347,-325,-952,-918,-899,-845,-816,0,-136,0,-1061,-1068,-933,-891,-1314,-715]} 1. e4 {[%emt 0:00:01]} d6 {[%emt 0:00:08]} 2. d4 {[%emt 0:00:12]} Nf6 {[%emt 0:00:07]} 3. Nc3 {[%emt 0:00:11]} e5 {[%emt 0:00:07]} 4. Nge2 {[%emt 0:01:33]} c6 {[%emt 0:00:18]} 5. h3 {[%emt 0:02:02]} b5 {[%emt 0:00:15]} 6. a3 {[%emt 0:00:20]} h5 {[%emt 0:00:10]} 7. f4 {[%emt 0:02:23]} Nbd7 {[%emt 0:01:31]} 8. fxe5 {[%emt 0:03:29] The position is equal.} dxe5 {[%emt 0:00:07]} 9. dxe5 {[%emt 0:00:24]} Nxe5 {[%emt 0:00:07]} 10. Qxd8+ {[%emt 0:01:05]} Kxd8 {[%emt 0:00:07]} 11. Bf4 {[%emt 0:01:24]} Bd6 {[%emt 0:03:54]} 12. O-O-O {[%emt 0:01:53]} Kc7 {[%emt 0:00:34]} 13. Kb1 {[%emt 0:00:44]} a6 {[%emt 0:08:06]} 14. Nd4 {[%emt 0:06:39][%cal Rf1b5]} h4 {[%emt 0:07:00]} 15. Nf3 $36 {[%emt 0:03:48][%mdl 2048] White is more active.} Nfd7 {[%emt 0:00:34]} 16. Be2 {[%emt 0:02:06][%cal Od1d6]} f6 {[%emt 0:02:01]} 17. Rd2 {[%emt 0:03:41]} Nf7 {[%emt 0:01:02] [#]} (17... Nf8 $11 {keeps the balance.}) 18. Rxd6 $1 $16 {[%emt 0:05:23][%mdl 512]} Nxd6 {[%emt 0:00:12]} 19. Rd1 {[%emt 0:00:44]} Ne5 {[%emt 0:00:41]} 20. Nxe5 {[%emt 0:00:20]} fxe5 {[%emt 0:00:08]} 21. Bxe5 {[%emt 0:00:12]} Rh6 {[%emt 0:07:59]} 22. Bf4 {[%emt 0:15:17][%mdl 1024] White has strong compensation. This pair of bishops is nice.} Re6 {[%emt 0:13:01]} 23. e5 {[%emt 0:13:57]} (23. Bh2 $142) 23... Nf5 {[%emt 0:10:38]} 24. Ne4 {[%emt 0:01:12]} Re8 {[%emt 0:06:55] [#]} (24... g6 $14) 25. Nc5 {[%emt 0:03:21]} (25. Bg4 Kb6 $16) (25. Bh5 $1 $16 {[%cal Rh5e8]} Be6 26. Nc5 (26. Bxe8 Rxe8 27. Rd2 Bd5 $16)) 25... Kb6 {[%emt 0:00:48]} 26. b4 {[%emt 0:01:30]} g6 $1 {[%emt 0:06:55] Prevents Bh5} 27. Bf3 {[%emt 0:10:43]} a5 {[%emt 0:13:48]} 28. Kb2 {[%emt 0:03:28]} Be6 {[%emt 0:10:26]} 29. Bh2 {[%emt 0:04:54]} (29. c3 $14) 29... Ne3 $15 {[%emt 0:01:14] aiming for ...axb4.} 30. Rd3 {[%emt 0:05:46]} Nc4+ {[%emt 0:00:53]} (30... axb4 $15 31. axb4 (31. Nxe6 Nc4+ 32. Kb1 Rxe6 $19) 31... Nc4+ (31... Ra2+ $2 32. Kb1 $18) 32. Kb1 Ra3) 31. Kb1 {[%emt 0:00:14]} (31. Kc3 $11 {was the only way to keep the balance.}) 31... Bf5 $17 {[%emt 0:01:10][%csl LRd3,LRe5]} 32. Rd6 {[%emt 0:04:53]} Nxd6 $19 {[%emt 0:00:40]} (32... Nxa3+ $2 {loses.} 33. Ka2 Rec8 (33... axb4 $2 {too greedy.} 34. Rxc6+ Ka5 35. e6 $18) 34. Kxa3 $18) (32... Nxe5 $2 33. Bxe5 Rec8 34. Kb2 $18) 33. exd6 {[%emt 0:00:01]} axb4 {[%emt 0:01:23]} 34. axb4 {[%emt 0:00:08]} Re1+ {[%emt 0:00:51]} 35. Kb2 {[%emt 0:00:01]} Rea1 {[%emt 0:00:22]} 36. Bf4 $2 {[%emt 0:00:33]} (36. Kc3) 36... R8a2+ {[%emt 0:00:53]} 37. Kb3 {[%emt 0:00:18]} Ra3+ {[%emt 0:00:25]} (37... Bxc2+ 38. Kc3 Bf5 39. d7 $11) ({Weaker is} 37... Rxc2 38. d7 Rb1+ 39. Ka3 Bxd7 40. Nxd7+ Kb7 41. Nc5+ Kc8 42. Ne4 $17) 38. Kb2 {[%emt 0:00:04]} R3a2+ $2 {[%emt 0:00:03]} (38... R1a2+ $19 {has better winning chances.} 39. Kb1 Rxc2) 39. Kb3 $1 $17 {[%emt 0:00:09]} Ra3+ $2 {[%emt 0:01:38][%mdl 8192]} (39... Ra7 $17 40. Kc3 R1a2) 40. Kb2 $19 {[%emt 0:00:08]} R1a2+ {[%emt 0:00:04] Black is clearly winning.} 41. Kb1 {[%emt 0:00:19]} Rxc2 {[%emt 0:00:08]} 42. Be4 {[%emt 0:00:30]} Rxc5 {[%emt 0:01:16] Weighted Error Value: White=0.69/Black=0.29 (precise) .  Loses game:     	White=2     	---        Mistake:       	White=5     	Black=3      Inaccurate:     	White=1     	Black=2      OK:         	White=9     	Black=9      Best:        	White=4     	Black=7      Strong:       	---       	Black=1      Brilliant:      	White=1     	---} 0-1

[Event "10th Iberoamericano-ch 2024"]
[Site "Linares"]
[Date "2024.09.25"]
[Round "2.10"]
[White "Oro, Faustino"]
[Black "Escalona Landi, Samid Eduardo"]
[Result "1-0"]
[ECO "B31"]
[WhiteElo "2434"]
[BlackElo "2305"]
[Annotator "TA"]
[PlyCount "87"]
[EventDate "2024.09.25"]
[EventType "swiss"]
[EventCountry "ESP"]
[SourceTitle "playchess.com"]
[Source "ChessBase"]
[SourceQuality "1"]
[TimeControl "5400+30"]

{[%evp 42,87,-64,-66,-54,-48,-44,-202,-71,-82,-63,-123,-132,-114,-133,-146,-127,-159,-64,-52,-40,-11,-16,-34,82,-58,0,0,0,-108,-107,-101,0,0,0,-15,437,438,450,405,12841,6573,5161,786,12652,6375,1529,470]} 1. e4 {[%emt 0:00:02]} c5 {[%emt 0:05:06]} 2. Nf3 {[%emt 0:00:06]} Nc6 {[%emt 0:00:13]} 3. Bb5 {[%emt 0:00:06]} g6 {[%emt 0:01:21]} 4. O-O {[%emt 0:00:19]} Bg7 {[%emt 0:00:11]} 5. Bxc6 {[%emt 0:00:12]} dxc6 {[%emt 0:00:06]} 6. d3 {[%emt 0:00:11]} e5 {[%emt 0:00:03]} 7. a4 {[%emt 0:00:06]} a5 {[%emt 0:00:05]} 8. Na3 {[%emt 0:00:04]} Qc7 {[%emt 0:00:23]} 9. Be3 {[%emt 0:02:31]} b6 {[%emt 0:00:07]} 10. Qd2 {[%emt 0:02:15]} h6 {[%emt 0:00:26]} 11. Nc4 {[%emt 0:04:35]} Ne7 {[%emt 0:01:28]} 12. h3 {[%emt 0:08:23]} Be6 {[%emt 0:00:35]} 13. Rae1 {[%emt 0:01:58]} g5 {[%emt 0:02:27]} 14. c3 {[%emt 0:07:44]} O-O {[%emt 0:05:07]} 15. Qc2 {[%emt 0:02:55]} Ng6 {[%emt 0:00:52]} 16. Nfd2 {[%emt 0:01:07]} Rab8 {[%emt 0:13:59]} 17. Rd1 {[%emt 0:16:36]} Rfd8 {[%emt 0:29:49]} 18. Kh2 {[%emt 0:15:11]} Qd7 {[%emt 0:04:44]} 19. Nb3 {[%emt 0:02:40]} Qc7 {[%emt 0:20:32]} 20. Qe2 {[%emt 0:11:35]} Kh7 {[%emt 0:00:14]} 21. Kg1 {[%emt 0:00:39]} f5 {[%emt 0:03:38]} ({Black should play} 21... b5 $1 $17 22. Ncd2 Bf8 (22... bxa4 23. Nxc5 Rxb2 $11)) 22. exf5 $15 {[%emt 0:01:50]} Bxf5 {[%emt 0:00:09]} 23. Rfe1 {[%emt 0:00:19]} Qf7 {[%emt 0:03:14]} 24. Qf3 $2 {[%emt 0:05:19] [#]} ({White should try} 24. Nc1 $15) 24... e4 {[%emt 0:01:35]} (24... Rxd3 25. Rxd3 e4 (25... Nh4 26. Qd1 $16) 26. Qg3 $16) (24... Nh4 $1 $19 {[%mdl 512] has better winning chances.} 25. Qg3 Rxd3 26. Rxd3 Bxd3 (26... Qxc4 27. Rd6 $11) 27. Nxe5 Bxe5 28. Qxe5 Re8) 25. dxe4 $17 {[%emt 0:00:14]} Qxc4 {[%emt 0:02:49]} (25... Nh4 $6 26. Qe2 Rxd1 27. Rxd1 Bxe4 28. f3 $11) 26. Nd2 {[%emt 0:02:40]} (26. exf5 $15 Ne5 (26... Qxb3 $2 27. fxg6+ Kh8 28. h4 $18) 27. Qh5 Qxb3 28. Bxg5 Rxd1 29. Rxd1) 26... Rxd2 $1 $17 {[%emt 0:00:31]} (26... Qxa4 27. exf5 (27. Qxf5 Qc2 $14) 27... Ne5 28. Qh5 $16) 27. Bxd2 {[%emt 0:00:04]} Be6 {[%emt 0:01:15]} 28. Qh5 {[%emt 0:01:30]} Bf6 {[%emt 0:01:04]} (28... Qxa4 29. Bxg5 Bf7 30. Bc1 $17) 29. Bc1 {[%emt 0:00:52]} Be7 {[%emt 0:00:55]} (29... Qxa4 30. h4 Nf4 (30... Nxh4 31. f4 $16) 31. Bxf4 gxf4 32. e5 $11 (32. Rd6 Qc4 $14)) (29... Ne5 $17 {[%cal Oe6f7] ...Bf7! is the strong threat.} 30. f4 Bf7) 30. h4 $1 $15 {[%emt 0:02:24]} Kg7 {[%emt 0:00:46]} (30... Qxa4 $2 31. hxg5 (31. Bxg5 Bf8 $18) 31... Bf7 32. f4 $18 (32. Qxh6+ Kg8 $18) (32. gxh6 Rf8 $18) (32. Qxh6+ Kg8 $18) (32. gxh6 Rf8 $18)) 31. f4 {[%emt 0:01:02]} gxf4 {[%emt 0:00:45]} 32. Bxf4 {[%emt 0:00:10]} Rh8 {[%emt 0:00:59]} (32... Nxf4 $15 {keeps the upper hand.} 33. Qe5+ Kh7) 33. Bd6 {[%emt 0:02:44]} (33. Be5+ $16 Bf6 (33... Nxe5 34. Qxe5+ Bf6 35. Qc7+ Kg6 36. Qxc6 $16) 34. Bxf6+ Kxf6 35. Qf3+ (35. Rd6 Kg7 $18) 35... Kg7 36. h5) 33... Bxh4 {[%emt 0:00:50]} (33... Qxa4 $2 34. Bxe7 Qc4 35. Rf1 (35. Rd6 Re8 $18) 35... Qxe4 36. Bf6+ (36. Rde1 Qd5 $18) 36... Kh7 37. Bxh8 $18 (37. Rde1 Qd5 $18)) (33... Bf6 $1 $15 34. Bg3 Rc8 (34... Qxa4 35. Rd6 $11)) 34. Be5+ $11 {[%emt 0:00:11]} Nxe5 {[%emt 0:00:08]} 35. Qxh4 {[%emt 0:00:08]} (35. Qxe5+ $11 {was the only way to keep the balance.} Kh7 36. Rd6) 35... Ng6 {[%emt 0:00:33]} (35... Qxa4 $2 {perishes.} 36. Qe7+ Nf7 37. Qxe6 $18) 36. Qg3 {[%emt 0:00:08] [#]} Rc8 {[%emt 0:00:37]} (36... Qxa4 $2 37. Qc7+ Bf7 38. Rd7 $16) (36... Re8 $1 $17 {[%cal Oe8e7] ...Re7! would now be deadly.} 37. Qc7+ Bf7 38. Qxc6 Qe6 39. Qxe6 (39. Rd6 $2 Qg4 $19) 39... Rxe6) 37. Rd6 $11 {[%emt 0:00:30]} Kh7 {[%emt 0:00:30]} 38. Rf1 {[%emt 0:01:04]} Rg8 $2 {[%emt 0:00:23][%mdl 8192]} (38... Qxe4 $11 {and Black stays safe.} 39. Kh2 Re8) 39. Rf6 $18 {[%emt 0:00:41]} Bf7 {[%emt 0:00:45]} 40. Rd7 {[%emt 0:00:19]} (40. Rxc6 Be8 41. Rc7+ (41. Rxb6 Qxa4 42. Qd3 Rg7 $11) 41... Rg7 $16) 40... Nh8 {[%emt 0:00:12]} (40... Rg7 $142 41. Rdxf7 (41. Rxc6 $2 {too greedy.} Qxe4 42. Rf6 Ne5 $19) 41... Qxe4) 41. Qf4 $18 {[%emt 0:00:10]} Rg6 {[%emt 0:01:02]} 42. Rxg6 {[%emt 0:00:16]} (42. Rfxf7+ $142 Nxf7 43. Rxf7+ Qxf7 44. Qxf7+ Rg7 45. Qf5+ Kg8 46. e5) 42... Kxg6 {[%emt 0:00:12]} 43. Rd6+ {[%emt 0:00:06]} Be6 {[%emt 0:00:10]} 44. Qf5+ {[%emt 0:00:00]} 1-0